Cogmind - Beta 14 @@@ ROGUE MODE // 2025.03.20 @ 23:10:47 Player: kat Result: Self-destructed Performance ------------- Evolutions (3) 1500 Regions Visited (6) 1200 Robots Destroyed (58) 290 Value Destroyed (2182) 2182 Prototype IDs (23) 460 Alien Tech Used (0) 0 Bonus (463) 463 TOTAL SCORE: 6095 Bonus ------- High Alert Combat Kills 163 Aligned with FarCom 300 Cogmind --------- Core Integrity 612/700 Matter 239/300 Energy 275/275 System Corruption 2% Temperature Cool (0) Movement Rolling (100) Location -7/Factory Parts ------- > --- POWER (1) -------- Deuterium Engine > --- PROPULSION (4) --- Armored Huge Wheel Armored Huge Wheel > --- UTILITY (2) ------ Advanced Heat Sink Small Storage Unit > --- WEAPON (6) ------- Particle Gun Particle Gun Gauss Rifle Assault Cannon Flak Cannon > --- INVENTORY (8) ---- Carbon-fiber Leg Improved Heat Sink Compact Matter Pod (10) Recoil Stabilizer Hacking Suite Hacking Suite System Restoration Module Improved Datajack Peak State ------------ > --- POWER ------------ Deuterium Engine > --- PROPULSION ------- VSS Leg Potential Leg Armored Huge Wheel > --- UTILITY ---------- Advanced Heat Sink Small Storage Unit > --- WEAPON ----------- Beam Rifle Particle Gun Autogun Gauss Rifle Assault Cannon Flak Cannon > --- INVENTORY -------- Carbon-fiber Leg Improved Heat Sink Compact Matter Pod Recoil Stabilizer Hacking Suite Hacking Suite System Restoration Module Improved Datajack [Rating: 48] Favorites ----------- Power Improved Ion Engine Engine Improved Ion Engine Power Core Light Nuclear Core Propulsion Potential Leg Leg Potential Leg Wheel Armored Huge Wheel Utility Small Storage Unit Device Advanced Heat Sink Storage Small Storage Unit Processor Signal Interpreter Weapon Beam Rifle Energy Gun Beam Rifle Ballistic Gun Heavy Assault Rifle Ballistic Cannon Flak Cannon Launcher Grenade Launcher Build | -11 -10 -10 -10 -9 -8 -7 ------- Run | Yrd Mat Min Exi Min Mat Fac Slots Evolved 6 | . . . . . 4 2 Power . | . . . . . . . Propulsion 2 | . . . . . . 2 Utility . | . . . . . . . Weapon 4 | . . . . . 4 . Parts Attached 50 | 5 5 8 2 . 19 11 Power 5 | 1 . 1 . . 3 . Engine 4 | 1 . 1 . . 2 . Core 1 | . . . . . 1 . Reactor . | . . . . . . . Propulsion 13 | 2 1 2 2 . 1 5 Treads . | . . . . . . . Leg 11 | 2 1 2 2 . 1 3 Wheel 2 | . . . . . . 2 Hover . | . . . . . . . Flight . | . . . . . . . Utility 4 | . 2 . . . 2 . Device 1 | . . . . . 1 . Storage 1 | . 1 . . . . . Processor 2 | . 1 . . . 1 . Hackware . | . . . . . . . Protection . | . . . . . . . Artifact . | . . . . . . . Weapon 28 | 2 2 5 . . 13 6 Energy Gun 13 | . 2 3 . . 7 1 Energy Cannon . | . . . . . . . Ballistic Gun 11 | 2 . 1 . . 5 3 Ballistic Cannon 3 | . . . . . 1 2 Launcher 1 | . . 1 . . . . Special Weapon . | . . . . . . . Impact Weapon . | . . . . . . . Slashing Weapon . | . . . . . . . Piercing Weapon . | . . . . . . . Special Melee Weapon . | . . . . . . . Unidentified Prototypes . | . . . . . . . Parts Lost 13 | . . 6 . . 4 3 Power 1 | . . 1 . . . . Propulsion 2 | . . 2 . . . . Utility . | . . . . . . . Weapon 10 | . . 3 . . 4 3 Highest Loss Streak 6 | . . 6 . . 1 1 To Critical Strikes . | . . . . . . . Average Slot Usage (%) 93 | . 85 97 100 100 91 85 Engine 11 | . 14 13 14 14 8 7 Leg 22 | . 28 27 28 28 18 11 Wheel 1 | . . . . . . 9 Device 1 | . . . . . 1 7 Storage 11 | . 10 14 14 14 9 7 Processor 8 | . 3 14 14 14 7 . Energy Gun 18 | . 22 23 14 14 25 12 Ballistic Gun 12 | . 5 3 14 14 14 16 Ballistic Cannon 3 | . . . . . 5 12 Peak Build Rating 48 | 5 7 10 28 28 46 48 Average Rating 28 | 4 6 7 17 28 38 44 On Entrance 16 | . 5 7 10 28 28 40 Naked Turns . | . . . . . . . Heaviest Build 41 | 9 12 18 18 18 37 41 Greatest Support 72 | 20 20 20 60 60 60 72 Greatest Overweight (x) 1 | 1 . . . . . 1 Average Overweight (x) . | . . . . . . . Largest Inventory Capacity 8 | 5 8 8 8 8 8 8 Average Capacity 7 | 5 7 8 8 8 8 8 Most Carried 8 | 3 6 8 8 8 8 8 Average Carried 7 | 1 5 6 6 7 7 7 Final Capacity 8 | 5 8 8 8 8 8 8 Final Carried 8 | 3 6 6 8 8 8 8 Class Distribution -------------------- 52% | Mutant 23% | Executioner 12% | Scavenger-Executioner 7% | Scavenger-Mutant Dominant Class ---------------- Mutant | -10/Materials Mutant | -10/Mines Scavenger-Mutant | -10/Exiles Mutant | -9/Mines Executioner | -8/Materials Executioner | -7/Factory Resources | -11 -10 -10 -10 -9 -8 -7 ----------- Run | Yrd Mat Min Exi Min Mat Fac Matter Collected 1544 | 183 134 85 . 74 628 440 Remotely . | . . . . . . . Salvage Created 2271 | . 200 182 . 272 1180 437 Parts 127 | . 19 15 . 8 63 22 Haulers Intercepted 2 | . 1 . . . 1 . Recyclers Shooed 2 | . . . . . 1 1 Parts Field Recycled . | . . . . . . . Retrieved Matter . | . . . . . . . Parts Self-Destructed . | . . . . . . . Prevented . | . . . . . . . Kills | -11 -10 -10 -10 -9 -8 -7 ------- Run | Yrd Mat Min Exi Min Mat Fac Combat Hostiles Destroyed 49 | . 6 4 . 6 20 13 Guns 36 | . 6 4 . 5 16 5 Cannons 9 | . . . . . 1 8 AOE 4 | . . . . 1 3 . Classes Destroyed 12 | . 4 1 . 1 3 3 Worker 1 | . . . . 1 . . Tunneler 1 | . . . . . 1 . Hauler 2 | . 1 . . . 1 . Recycler 1 | . . . . . 1 . Operator 1 | . . . . . . 1 Watcher 3 | . 1 . . . 2 . Swarmer 7 | . 3 . . . . 4 Grunt 30 | . 3 2 . 6 13 6 Brawler 1 | . . . . . . 1 Sentry 9 | . . 2 . . 6 1 Hunter 1 | . . . . . 1 . Programmer 1 | . . . . . . 1 Best Kill Streak 7 | . 3 4 . 2 7 4 Combat Bots Only 7 | . 3 4 . 2 7 4 Max Kills in Single Turn 2 | . 2 1 . 2 2 1 Gunslinging . | . . . . . . . Exploded 2 | . . . . 1 2 . Melee . | . . . . . . . Uniques/NPCs Destroyed . | . . . . . . . Combat | -11 -10 -10 -10 -9 -8 -7 -------- Run | Yrd Mat Min Exi Min Mat Fac Hostile Shots Fired 285 | . 13 56 . 16 85 115 Missed 83 | . 5 12 . 5 24 37 Damage Taken 3080 | . 71 673 . 138 978 1220 Core 493 | . . 187 . 23 195 88 Absorbed by Shields . | . . . . . . . Regen/Repaired (Parts) 217 | . . . . . . 217 Core Remaining (%) 60 | 100 . . . 16 64 . Volleys Fired 166 | . 18 15 . 20 64 49 Largest 6 | . 2 2 . 2 6 6 Hottest 281 | . 80 80 . 79 271 281 Shots Fired 410 | . 36 23 . 38 203 110 Gun 352 | . 36 22 . 38 186 70 Cannon 57 | . . . . . 17 40 Launcher 1 | . . 1 . . . . Special . | . . . . . . . Kinetic 213 | . 16 1 . 18 103 75 Thermal 164 | . 20 21 . 20 68 35 Explosive 1 | . . 1 . . . . Electromagnetic 32 | . . . . . 32 . Robot Hit Streak 28 | . 4 9 . 11 8 28 Robot Miss Streak 12 | . 6 1 . 3 8 12 Penetration Max . | . . . . . . . Secondary Targets 4 | . . 2 . . 1 1 Max Gunslinging Chain 1 | . . 1 . . 1 1 Shots Hit Robots 251 | . 18 20 . 22 112 79 Core Hits 144 | . 12 10 . 9 68 45 Critical Kills . | . . . . . . . Critical Parts Destroyed . | . . . . . . . Critical Strikes 11 | . . . . 2 5 4 Burn 10 | . . . . 2 4 4 Corrupt 1 | . . . . . 1 . Melee Attacks . | . . . . . . . Impact . | . . . . . . . Slashing . | . . . . . . . Piercing . | . . . . . . . Sneak Attacks . | . . . . . . . Combat Hostiles . | . . . . . . . Follow-up Attacks . | . . . . . . . Damage Inflicted 4490 | . 229 236 . 341 2281 1403 Guns 3264 | . 229 230 . 336 1652 817 Cannons 695 | . . . . . 205 490 Explosions 512 | . . 6 . . 410 96 Melee . | . . . . . . . Ramming 19 | . . . . 5 14 . Kinetic 2168 | . 99 12 . 192 995 870 Thermal 1625 | . 130 218 . 144 696 437 Explosive 102 | . . 6 . . . 96 Electromagnetic 576 | . . . . . 576 . Impact . | . . . . . . . Slashing . | . . . . . . . Piercing . | . . . . . . . Highest Corruption 2 | . . . . . . 2 Average Corruption 1 | . . . . . . 1 Corruption Purged . | . . . . . . . Corruption Blocked . | . . . . . . . Effects 5 | . . . . . . 5 Message Errors 1 | . . . . . . 1 Matter Fused 1 | . . . . . . 1 Energy Discharges 2 | . . . . . . 2 Weapon Failures 1 | . . . . . . 1 Overload Shots . | . . . . . . . Overflow Damage 50 | . . . . . 50 . Projectiles . | . . . . . . . Explosions 50 | . . . . . 50 . Melee . | . . . . . . . Knockbacks 15 | . . . . . 5 10 Impact . | . . . . . . . Kinetic 15 | . . . . . 5 10 Secondary . | . . . . . . . Self-Inflicted Damage 190 | . . 15 . . 101 74 Shots 5 | . . 1 . . 3 1 Rammed . | . . . . . . . Targets Rammed 6 | . . 2 . 1 3 . Kicked 6 | . . 2 . 1 3 . Crushed . | . . . . . . . Highest Temperature 631 | . 72 313 . 129 631 184 Average Temperature 131 | . 30 172 . 43 186 29 Received Heat Transfer 1020 | . 18 300 . 78 351 273 Effects 21 | . . 2 . . 19 . Shutdowns 4 | . . . . . 4 . Energy Bleed 3 | . . . . . 3 . Interference 4 | . . 2 . . 2 . Matter Decay 1 | . . . . . 1 . Short Circuit 1 | . . . . . 1 . Damage (minor) 2 | . . . . . 2 . Damage (major) 5 | . . . . . 5 . Damage (core) 1 | . . . . . 1 . Siege Activations . | . . . . . . . Robots Corrupted . | . . . . . . . Combat Hostiles . | . . . . . . . Parts Fried 1 | . . . . . 1 . Impact Corruptions . | . . . . . . . Robots Melted . | . . . . . . . Combat Hostiles . | . . . . . . . Parts Melted 4 | . . . . 1 2 1 Heat Transferred 4354 | . 300 500 . 518 1667 1369 Parts Sabotaged . | . . . . . . . Parts Stolen . | . . . . . . . Parts Stripped . | . . . . . . . Power Chain Reactions 4 | . . . . . 4 . Alert | -11 -10 -10 -10 -9 -8 -7 ------- Run | Yrd Mat Min Exi Min Mat Fac Peak Influence 501 | . 169 114 . 120 501 492 Initial 225 | . . 65 . . 33 225 Average 147 | . 80 60 . 55 186 341 Maximum Alert Level 2 | . . . . . 2 2 Low Security (%) 69 | 100 100 100 . 100 60 . Level 1 21 | . . . . . 26 75 Level 2 8 | . . . . . 13 24 Level 3 . | . . . . . . . Level 4 . | . . . . . . . Level 5 . | . . . . . . . High Security . | . . . . . . . Max Security . | . . . . . . . Squads Dispatched 8 | . 1 . . . 2 5 Investigation 3 | . . . . . 1 2 Extermination 1 | . . . . . . 1 Reinforcement 4 | . 1 . . . 1 2 Assault . | . . . . . . . Garrison . | . . . . . . . Intercept . | . . . . . . . Searches Triggered . | . . . . . . . Construction Impeded 1 | . . . . . . 1 Haulers Reinforced . | . . . . . . . Active Scanning Responses . | . . . . . . . Cargo Convoy Interrupts . | . . . . . . . Stealth | -11 -10 -10 -10 -9 -8 -7 --------- Run | Yrd Mat Min Exi Min Mat Fac Distress Signals 5 | . 1 . . . 3 1 Communications Jammed . | . . . . . . . Distress Signals . | . . . . . . . Times Spotted 64 | . 11 4 . 7 27 15 Peak Tracking Total 8 | . 4 4 . 3 8 4 Tactical Retreats 7 | . . . . 3 3 1 Traps | -11 -10 -10 -10 -9 -8 -7 ------- Run | Yrd Mat Min Exi Min Mat Fac Traps Triggered 2 | . . . . . 1 1 Indirectly . | . . . . . . . Trap Hack Attempts . | . . . . . . . Triggered . | . . . . . . . Disarmed . | . . . . . . . Reprogrammed . | . . . . . . . Reused . | . . . . . . . Traps Extracted . | . . . . . . . Installed 2 | . . . . . 2 . Triggered 3 | . . . . 3 . . Most Traps Carried 4 | . . . . 4 4 . Machines | -11 -10 -10 -10 -9 -8 -7 ---------- Run | Yrd Mat Min Exi Min Mat Fac Machines Disabled 6 | . . . . . 4 2 Max in Single Turn 2 | . . . . . 2 2 Machines Repaired . | . . . . . . . Machines Dismantled . | . . . . . . . Machines Sabotaged . | . . . . . . . Overloaded Fab Kills . | . . . . . . . Hacking | -11 -10 -10 -10 -9 -8 -7 --------- Run | Yrd Mat Min Exi Min Mat Fac Machines Accessed 8 | . 1 . 1 . 2 4 Terminals 4 | . 1 . . . 1 2 Fabricators . | . . . . . . . Repair Stations 2 | . . . . . . 2 Recycling Units . | . . . . . . . Scanalyzers 1 | . . . . . 1 . Garrison Access . | . . . . . . . Total Hacks 18 | . 4 . 1 . 4 9 Successful 10 | . 1 . 1 . 2 6 Failed 8 | . 3 . . . 2 3 Catastrophic 1 | . . . . . 1 . Database Lockouts . | . . . . . . . Manual 6 | . 3 . 1 . 2 . Terminals 8 | . 4 . . . 1 3 Fabricators . | . . . . . . . Repair Stations 6 | . . . . . . 6 Recycling Units . | . . . . . . . Scanalyzers 3 | . . . . . 3 . Garrison Access . | . . . . . . . Terminal Hacks 3 | . . . 1 . . 2 Open DSF 1 | . . . . . . 1 Terminal Index 1 | . . . . . . 1 Derelict Proto ID Bank 1 | . . . 1 . . . Fabricator Hacks . | . . . . . . . Repair Station Hacks 4 | . . . . . . 4 Scan Component 2 | . . . . . . 2 Repair 2 | . . . . . . 2 Recycling Unit Hacks . | . . . . . . . Scanalyzer 2 | . . . . . 2 . Insert Component 1 | . . . . . 1 . Analyze 1 | . . . . . 1 . Garrison Access Hacks . | . . . . . . . Unauthorized Hacks 1 | . 1 . . . . . Terminals 1 | . 1 . . . . . Track 1 | . 1 . . . . . Fabricators . | . . . . . . . Repair Stations . | . . . . . . . Recycling Units . | . . . . . . . Scanalyzers . | . . . . . . . Garrison Access . | . . . . . . . Data Cores Recovered 1 | . . . . . . 1 Used 1 | . . . . . . 1 Hacking Detections 4 | . . . . . 1 3 Full Trace Events 1 | . . . . . . 1 Feedback Events . | . . . . . . . Feedback Blocked . | . . . . . . . Robot Schematics Acquired . | . . . . . . . Robots Built . | . . . . . . . Authchips . | . . . . . . . Time . | . . . . . . . Total Robot Build Rating . | . . . . . . . Part Schematics Acquired 1 | . . . . . 1 . Parts Built . | . . . . . . . Authchips . | . . . . . . . Time . | . . . . . . . Total Part Build Rating . | . . . . . . . Parts Repaired 2 | . . . . . . 2 Time 38 | . . . . . . 38 Parts Recycled . | . . . . . . . Recycled Matter . | . . . . . . . Retrieved Matter . | . . . . . . . Retrieved Components . | . . . . . . . Parts Scanalyzed 1 | . . . . . 1 . Part Schematics Acquired 1 | . . . . . 1 . Parts Damaged . | . . . . . . . Bothacking | -11 -10 -10 -10 -9 -8 -7 ------------ Run | Yrd Mat Min Exi Min Mat Fac Used RIF Installer . | . . . . . . . Robots Hacked . | . . . . . . . Non-combat . | . . . . . . . Combat . | . . . . . . . Robot Hacks Applied . | . . . . . . . Relay Couplers Released . | . . . . . . . Fabnet Peak Effective % . | . . . . . . . Robots Rewired . | . . . . . . . Allies Hacked . | . . . . . . . Hacks Repelled . | . . . . . . . Allies | -11 -10 -10 -10 -9 -8 -7 -------- Run | Yrd Mat Min Exi Min Mat Fac Total Allies . | . . . . . . . Largest Group . | . . . . . . . Highest-Rated Group . | . . . . . . . Highest-Rated Ally . | . . . . . . . Total Orders . | . . . . . . . Ally Attacks . | . . . . . . . Total Damage . | . . . . . . . Kills . | . . . . . . . Allies Corrupted . | . . . . . . . Allies Melted . | . . . . . . . Intel | -11 -10 -10 -10 -9 -8 -7 ------- Run | Yrd Mat Min Exi Min Mat Fac Robot Analysis Total . | . . . . . . . Derelict Logs Recovered 4 | . . 2 . 2 . . Drone Launches . | . . . . . . . Drone Recoveries . | . . . . . . . Exploration | -11 -10 -10 -10 -9 -8 -7 ------------- Run | Yrd Mat Min Exi Min Mat Fac Turns Passed 3815 | 57 301 480 260 1096 923 698 Spaces Moved 2877 | 42 185 349 246 1058 544 453 Core 10 | 10 . . . . . . Treads . | . . . . . . . Legs 2598 | 32 185 349 246 1058 544 184 Wheels 269 | . . . . . . 269 Hover . | . . . . . . . Flight . | . . . . . . . Fastest Speed 50 | 50 120 120 90 90 90 100 Average Speed 98 | 105 120 120 104 90 90 102 Slowest Speed 120 | 120 120 120 120 90 90 115 Overloaded Moves . | . . . . . . . Propulsion Burnouts . | . . . . . . . Robots Hopped . | . . . . . . . Cave-ins Triggered . | . . . . . . . Exploration Rate (%) 45 | 4 27 83 50 101 46 10 Regions Visited 6 Branch Regions 3 Pre-discovered Areas 2 | . . . . 2 . . Known Exits Taken 5 | . 1 1 1 1 1 . Unknown Exits Taken 1 | 1 . . . . . . Scrap Searched 3 | . . 1 . 2 . . Spaces Dug . | . . . . . . . Terrain Destroyed 59 | . . 4 . . 21 34 Melee . | . . . . . . . Projectile 1 | . . . . . . 1 AOE 58 | . . 4 . . 21 33 Terrain Rammed . | . . . . . . . Walls Destroyed . | . . . . . . . Machines Disabled . | . . . . . . . Actions | -11 -10 -10 -10 -9 -8 -7 --------- Run | Yrd Mat Min Exi Min Mat Fac Total 3526 | 52 227 386 247 1165 848 601 Wait 365 | 3 13 5 . 79 189 76 Move 2871 | 41 184 348 245 1057 543 453 Hop . | . . . . . . . Pick Up 34 | 3 4 6 . 4 13 4 Fast Attach 24 | 5 3 2 . . 7 7 Attach 13 | . 1 5 . . 5 2 Detach . | . . . . . . . Swap 13 | . 1 1 2 . 7 2 Drop 32 | . 3 2 . 4 15 8 Fire 166 | . 18 15 . 20 64 49 Melee . | . . . . . . . Ram . | . . . . . . . Kick 6 | . . 2 . 1 3 . Crush . | . . . . . . . Escape Stasis . | . . . . . . . Rewire . | . . . . . . . Trap 2 | . . . . . 2 . Miscellaneous . | . . . . . . . Route ------- -11/Scrapyard -10/Materials (discovered 2 exits: *Mat / *Min) -10/Mines (discovered 2 exits: *Mat / *Exi) -10/Exiles -9/Mines (discovered 2 exits: *Mat x2) -8/Materials -7/Factory History --------- Turn | Location | Event 10 | -11/Scrapyard | Discovered new exit (range 15) 58 | -11/Scrapyard | Entered Materials 201 | -10/Materials | Discovered new exit (range 5) 231 | -10/Materials | Discovered new exit (range 16) 302 | -10/Materials | Identified exit to Materials 316 | -10/Materials | Build established: Mutant 358 | -10/Materials | Identified exit to Mines 359 | -10/Materials | Entered Mines 394 | -10/Mines | Discovered exit to Materials (range 7) 637 | -10/Mines | Learned Materials stockpile data 694 | -10/Mines | Core integrity fell below 50% 735 | -10/Mines | Lost 6 parts (1p2n3w) 755 | -10/Mines | Learned Materials terminal intel 833 | -10/Mines | Deemed a non-threat by the Exiles lab entrance 834 | -10/Mines | Discovered new exit (range 5) 838 | -10/Mines | Identified exit to Exiles 839 | -10/Mines | Entered Exiles 869 | -10/Exiles | Met 8R-AWN 891 | -10/Exiles | Met EX-HEX 927 | -10/Exiles | Met EX-BIN 941 | -10/Exiles | Aligned with FarCom system 943 | -10/Exiles | Given EX-Vault access code 976 | -10/Exiles | Opened EX-Vault 983 | -10/Exiles | Found Potential Leg 986 | -10/Exiles | Found Potential Leg 1006 | -10/Exiles | Warned to stay clear of 0b10 Research branches 1033 | -10/Exiles | Met EX-DEC 1087 | -10/Exiles | Discovered new exit (range 15) 1098 | -10/Exiles | Identified exit to Mines 1099 | -10/Exiles | Left Exiles lab with Potential Leg 1099 | -10/Exiles | Entered Mines 1219 | -9/Mines | Found a hidden stash of uninstalled traps 1308 | -9/Mines | Learned location of Storage (-9) 1309 | -9/Mines | Discovered new exit (range 2) 1311 | -9/Mines | Identified exit to Materials 1724 | -9/Mines | Discovered exit to Materials (range 7) 1904 | -9/Mines | Core integrity fell below 20% 1972 | -9/Mines | Learned 2 Materials zone layouts 2195 | -9/Mines | Entered Materials 2195 | -8/Materials | Evolved 4 slots: Weapon x4 2196 | -8/Materials | Identified exit to Factory 2198 | -8/Materials | Loaded intel: 10 terminal locations 2796 | -8/Materials | Build established: Executioner 3037 | -8/Materials | Destroyed 7 combat bots 3118 | -8/Materials | Entered Factory 3118 | -7/Factory | Evolved 2 slots: Propulsion x2 3304 | -7/Factory | Repaired VSS Leg 3405 | -7/Factory | Build established: Scavenger-Executioner 3506 | -7/Factory | Repaired Flak Cannon 3791 | -7/Factory | Build established: Executioner 3816 | -7/Factory | Self-destructed Last Messages --------------- 03745_ G-47 Trooper destroyed. 03748_ K-01 Serf collects debris. 03748_ Acquired 61 matter. 03749_ Acquired 26 matter. 03751_ Acquired 28 matter. 03752_ K-01 Serf collects debris. 03755_ Acquired 51 matter. 03756_ K-01 Serf collects debris. 03764_ System corrupted: Energy discharge (-107). 03764_ Extracted 50 matter. 03764_ K-01 Serf collects debris. 03769_ Acquired 40 matter. 03775_ Acquired 5 matter. 03798_ Slug penetrates Y-54 Guardian. 03803_ Flak Gun destroyed. 03807_ Slug penetrates Y-54 Guardian. 03813_ U-05 Engineer knocked back. 03813_ Y-54 Guardian destroyed. 03813_ ALERT: Construction progress impeded, dispatching reinforcements to local area. Map ----- +----------------------------------------------------+ | ?????????????????????????????????????????????????? | | ?????????????????????????????????????????????????? | | ???????????????????????????????????????##########? | | ???????????????????????????????????????# #? | | ???????????????????????????????????????# """ #? | | ???????????????????????????????????????# """ #? | | ???????????????????????????????????????# """ #? | | ???????????????????????????????????????# #? | | ???????????????????????????????????????# " "" #? | | ???????????????????????????????????????# "R"" #? | | ????????????????????????% ????????????# """" #? | | ????????????????????????!% ????????????# #? | | ???????????????????????? ????????????#####+##### | | ???????????????????????# #????????????# | | ???????????????????????# #????????????# | | ???????????????????????# #????????????# | | ???????????????????????# #????????????# | | ???????????????????????# #????????????# | | ???????????????????????# ;????????????# #### | | ???????????????????????# #????????????# # | | ???????????????????????+ #????????????# # [ | | ???????????????????????# #????????????+ + | | ???????????????????????# #????????????# # | | ???????????????????????# #????????????# # | | ???????????????#####???# #????????????# # | | ???????????????? ??# @ #????????????# # | | ????????????????? ?#u #????????????# # | | ?????????????????? ?# #????????????# # | | ????????????????????g #u ###########+?# # | | ????????????????????g # # !]= # ?# # | | ??????????????????????g/ k# === ! # ?# # | | ???????????????????????# # /[! !# ## #### | | ???????????????????????# k # =* =* # ## # | | ???????????s???????????# ####/###### ## # "" | | ???????????????????????# #??#=#????# ## # "" | | ????????????s??????????# #??#!#????# ## # "" | | ???????????s???????????# #??# #????# # # | | ??????????????????????## ##?# #????# #T # ! | | ??????????????????????# #?# ###### ## #### | | ??????????????????????# ### #??? | | ??????????????????????+ % #### | | ??????????????????????# ### | | ??????????????????????# #?# #### | | ??????????????????????#######?# #??? | | ??????????????????????????????######## #### | | ??????????????????????????????????#### ## # | | ??????????????????????????????????####+####+###### | | ?????????????????????????????????### | | ?????????????????????????????????# # % | | ?????????????????????????????????# # | +----------------------------------------------------+ Best States ------------- Heat Dissipation 53 Energy Generation 14 Energy Capacity 275 Matter Stores 300 Matter Capacity 300 Sight Range 16 Terrain Scan Density 10 Evasion (%) 57 Item Schematics ----------------- VSS Leg | -8/Materials | Scanalyzed Robot Schematics ------------------ None Fabricated ------------ Nothing Alien Tech Used ----------------- None Achievements -------------- None Challenges ------------ None Game ------ Seed DimensionalNullStreamer Manual? 0 Play Time 00:50:25 Cumulative 22.7 hours Start 2025.03.20 @ 21:28:32 End 2025.03.20 @ 23:10:47 Sessions 1 Manual Loads 0 Difficulty Rogue Special Mode None Game No. 28 Rogue 27 Adventurer 1 Explorer 0 Win Type - Total 0 Types 0/0/0/0/0/0/0/0/0 Lore% 23 Gallery% 24 Achievement% 23 Wizard Run 0 Options --------- Layout 0 ASCII 0 Keyboard 0 Movement Mouse Keybinds 0 Fullscreen 1 Font 16/SmallcapsGlow Map View 75x55 Zoom Use 0% Tactical HUD 1 Map Filters NONE Filters NONE Steam 1 RUN: 3a17e27b-4fbe-48f0-8d81-967bd2aaf078